bitfinex-derivatives/quotes_BTCF0:USTF0_20240923
["timestamp","ask_amount","ask_price","bid_price","bid_amount"]
[1727121699041,0.154954,63306.0,63305.0,0.006]
[1727121699443,0.154954,63306.0,63305.0,0.069008]
[1727121700345,0.154954,63306.0,63305.0,0.006]
[1727121700646,0.154954,63306.0,63305.0,0.069008]
[1727121702545,0.154954,63306.0,63305.0,0.006]
[1727121702842,0.154954,63306.0,63305.0,0.06906354]
[1727121703238,0.154954,63306.0,63305.0,0.06906316]
[1727121703544,0.154954,63306.0,63305.0,0.006]
[1727121705543,0.075977,63306.0,63305.0,0.006]
[1727121705732,0.075977,63306.0,63305.0,0.084978]
[1727121705936,0.075977,63306.0,63305.0,0.13229552]
[1727121709740,0.235977,63306.0,63305.0,0.13229552]
[1727121710745,0.235977,63306.0,63305.0,0.084978]
[1727121712753,0.235977,63306.0,63305.0,0.26431293]
[1727121714351,0.185977,63306.0,63305.0,0.18530765]
[1727121717555,0.185977,63306.0,63305.0,0.27972907]
[1727121719443,0.185977,63306.0,63305.0,0.28006674]
[1727121719643,0.185977,63306.0,63305.0,0.18530765]
[1727121721249,0.264954,63306.0,63305.0,0.10632965]
[1727121721557,0.343931,63306.0,63305.0,0.10632965]
[1727121721754,0.343931,63306.0,63305.0,0.18531334]
[1727121722050,0.343931,63306.0,63305.0,0.006]
[1727121722642,0.157962,63303.0,63302.0,0.07898369]
[1727121722840,0.157962,63303.0,63292.0,0.078994]
[1727121722841,0.157964,63302.0,63301.0,0.06318466]
[1727121723044,0.314564,63302.0,63301.0,0.06318466]
[1727121723248,0.157966,63301.0,63300.0,0.06318466]
[1727121723448,0.157966,63301.0,63294.0,0.0037]
[1727121723449,0.157968,63300.0,63299.0,0.06318466]
[1727121723648,0.157968,63300.0,63298.0,0.078987]
[1727121723649,0.078988,63299.0,63298.0,0.078987]
[1727121724051,0.001,63303.0,63298.0,0.10072361]
[1727121724252,0.078984,63301.0,63300.0,0.1579196]
[1727121724440,0.078984,63301.0,63300.0,0.439783]
[1727121724646,0.078984,63301.0,63300.0,0.6193828]
[1727121724948,0.188984,63301.0,63300.0,0.5404462]
[1727121725550,0.189984,63301.0,63300.0,0.5404462]
[1727121726062,0.190984,63301.0,63300.0,0.5404462]
[1727121726349,0.080984,63301.0,63300.0,0.5404462]
[1727121726952,0.079984,63301.0,63300.0,0.5404462]
[1727121727359,0.080984,63301.0,63300.0,0.5404462]
[1727121727862,0.080984,63301.0,63300.0,0.439783]
[1727121729757,0.002,63301.0,63300.0,0.439783]
[1727121730272,0.0037,63306.0,63305.0,0.078978]
[1727121730554,0.078972,63311.0,63306.0,0.078977]
[1727121730765,0.078972,63311.0,63310.0,0.3608]
[1727121732160,0.003,63311.0,63310.0,0.439772]
[1727121733749,0.006,63311.0,63310.0,0.439772]
[1727121734557,0.006,63311.0,63310.0,0.46446406]
[1727121735065,0.006,63311.0,63310.0,0.56439569]
[1727121736467,0.006,63311.0,63310.0,0.53970363]
[1727121736861,0.006,63311.0,63310.0,0.56439558]
[1727121737071,0.006,63311.0,63310.0,0.64336743]
[1727121737456,0.006,63311.0,63310.0,0.61867563]
[1727121739268,0.006,63311.0,63310.0,0.64336715]
[1727121740278,0.006,63311.0,63310.0,0.72233915]
[1727121740466,0.0037,63316.0,63315.0,0.157932]
[1727121740672,0.078957,63322.0,63319.0,0.078961]
[1727121740673,0.0037,63320.0,63319.0,0.078961]
[1727121740874,0.0037,63320.0,63317.0,0.078963]
[1727121740875,0.157918,63321.0,63320.0,0.07896]
[1727121741167,0.078958,63321.0,63320.0,0.14199512]
[1727121742167,0.089958,63321.0,63320.0,0.14199512]
[1727121742670,0.100958,63321.0,63320.0,0.14199512]
[1727121742877,0.12655971,63321.0,63320.0,0.07896]
[1727121743358,0.100958,63321.0,63320.0,0.07896]
[1727121748668,0.022,63321.0,63320.0,0.15792]
[1727121748863,0.022,63321.0,63320.0,0.07896]
[1727121750163,0.022,63321.0,63320.0,0.14199512]
[1727121750164,0.100958,63321.0,63320.0,0.14199512]
[1727121750358,0.100958,63321.0,63320.0,0.07896]
[1727121750969,0.100958,63321.0,63320.0,0.14199512]
[1727121753271,0.022,63321.0,63320.0,0.14199512]
[1727121753475,0.022,63321.0,63320.0,0.07896]
[1727121753674,0.022,63321.0,63320.0,0.15792]
[1727121753875,0.022,63321.0,63320.0,0.07896]
[1727121754276,0.022,63321.0,63320.0,0.26792]
[1727121755371,0.022,63321.0,63320.0,0.34671424]
[1727121756068,0.022,63321.0,63320.0,0.44606165]
[1727121756272,0.022,63321.0,63320.0,0.44605735]
[1727121756578,0.022,63321.0,63320.0,0.44600616]
[1727121756966,0.022,63321.0,63320.0,0.34688]
[1727121758963,0.022,63321.0,63320.0,0.26792]
[1727121759872,0.022,63321.0,63320.0,0.34688]
[1727121760070,0.0037,63328.0,63327.0,0.157902]
[1727121760277,0.28295756,63333.0,63332.0,0.078945]
[1727121760485,0.30855354,63333.0,63332.0,0.078945]
[1727121760669,0.21453998,63333.0,63332.0,0.078945]
[1727121760870,0.30855354,63333.0,63332.0,0.078945]
[1727121761071,0.30855343,63333.0,63332.0,0.078945]
[1727121761274,0.10453987,63333.0,63332.0,0.078945]
[1727121761880,0.078944,63333.0,63332.0,0.078945]
[1727121762467,0.00236917,63334.0,63333.0,0.078943]
[1727121762678,0.02796422,63334.0,63333.0,0.439743]
[1727121763184,0.00236917,63334.0,63333.0,0.439743]
[1727121763778,0.00736917,63334.0,63333.0,0.440743]
[1727121764171,0.01236917,63334.0,63333.0,0.441743]
[1727121764772,0.09131117,63334.0,63333.0,0.441743]
[1727121766974,0.09131117,63334.0,63333.0,0.3628]
[1727121767186,0.21645317,63334.0,63333.0,0.3628]
[1727121770487,0.29539517,63334.0,63333.0,0.3628]
[1727121771788,0.29539517,63334.0,63333.0,0.42581647]
[1727121771989,0.21645317,63334.0,63333.0,0.41008564]
[1727121772687,0.214084,63334.0,63333.0,0.41008564]
[1727121772895,0.088942,63334.0,63333.0,0.48902864]
[1727121773274,0.088942,63334.0,63333.0,0.441743]
[1727121774182,0.088942,63334.0,63333.0,0.50475947]
[1727121774386,0.01,63334.0,63333.0,0.520686]
[1727121777790,0.01,63334.0,63333.0,1.17201062]
[1727121778091,0.005,63334.0,63333.0,1.09226757]
[1727121778280,0.0037,63342.0,63333.0,0.54064457]
[1727121778479,0.07893,63344.0,63343.0,0.078931]
[1727121778691,0.07893,63344.0,63341.0,0.3608]
[1727121778692,0.078932,63342.0,63341.0,0.3608]
[1727121779284,0.157864,63342.0,63341.0,0.3608]
[1727121779990,0.34954842,63342.0,63341.0,0.001]
[1727121780193,0.49120456,63342.0,63341.0,0.001]
[1727121780394,0.34954842,63342.0,63341.0,0.001]
[1727121780974,0.4905517,63342.0,63341.0,0.001]
[1727121781186,0.35254842,63342.0,63341.0,0.002]
[1727121781393,0.49354864,63342.0,63341.0,0.002]
[1727121781579,0.35254842,63342.0,63341.0,0.002]
[1727121783484,0.34985363,63342.0,63341.0,0.002]
[1727121785288,0.29314808,63342.0,63341.0,0.002]
[1727121786984,0.174864,63342.0,63341.0,0.002]
[1727121787183,0.253796,63342.0,63341.0,0.002]
[1727121788295,0.174864,63342.0,63341.0,0.002]
[1727121788501,0.253796,63342.0,63341.0,0.002]
[1727121789385,0.174864,63342.0,63341.0,0.002]
[1727121789800,0.253796,63342.0,63341.0,0.002]
[1727121790003,0.174864,63342.0,63341.0,0.002]
[1727121790801,0.253796,63342.0,63341.0,0.002]
[1727121791186,0.253796,63342.0,63341.0,0.06502138]
[1727121791390,0.174864,63342.0,63341.0,0.06502138]
[1727121791795,0.174864,63342.0,63341.0,0.002]
[1727121791991,0.174864,63342.0,63341.0,0.06510579]
[1727121792296,0.170864,63342.0,63341.0,0.002]
[1727121793912,0.166864,63342.0,63341.0,0.001]
[1727121794092,0.169864,63342.0,63341.0,0.002]
[1727121794792,0.160864,63342.0,63341.0,0.001]
[1727121794992,0.23856204,63342.0,63341.0,0.002]
[1727121795697,0.22956204,63342.0,63341.0,0.001]
[1727121795899,0.23856204,63342.0,63341.0,0.002]
[1727121796695,0.34833549,63342.0,63341.0,0.002]
[1727121797100,0.28866184,63342.0,63341.0,0.002]
[1727121797403,0.23856204,63342.0,63341.0,0.002]
[1727121797597,0.23656204,63342.0,63341.0,0.001]
[1727121797903,0.28972125,63342.0,63341.0,0.002]
[1727121800006,0.52517663,63342.0,63341.0,0.002]
[1727121801288,0.39972125,63342.0,63341.0,0.002]
[1727121802004,0.280864,63342.0,63341.0,0.002]
[1727121805607,0.280864,63342.0,63341.0,0.080933]
[1727121808410,0.280864,63342.0,63341.0,0.15970972]
[1727121809111,0.280864,63342.0,63341.0,0.08077672]
[1727121809406,0.280864,63342.0,63341.0,0.002]
[1727121809609,0.359796,63342.0,63341.0,0.002]
[1727121809906,0.359796,63342.0,63341.0,0.06515575]
[1727121810102,0.359796,63342.0,63341.0,0.002]
[1727121810103,0.41525902,63342.0,63341.0,0.002]
[1727121810507,0.13193964,63342.0,63341.0,0.002]
[1727121810706,0.08178947,63342.0,63341.0,0.080933]
[1727121811107,0.08178947,63342.0,63341.0,0.129933]
[1727121811405,0.03859554,63342.0,63341.0,0.129933]
[1727121811603,0.1329125,63342.0,63341.0,0.129933]
[1727121813104,0.03859554,63342.0,63341.0,0.129933]
[1727121814112,0.09431696,63344.0,63343.0,0.078931]
[1727121814312,0.09431696,63344.0,63343.0,0.188931]
[1727121814618,0.09431696,63345.0,63344.0,0.07893]
[1727121814915,0.09431696,63345.0,63344.0,0.18893]
[1727121815116,0.09431696,63345.0,63344.0,0.66253]
[1727121816115,0.00236893,63347.0,63346.0,0.078927]
[1727121816613,0.0037,63352.0,63351.0,0.078921]
[1727121816814,0.0493,63361.0,63351.0,0.13467771]
[1727121816815,0.09425041,63354.0,63351.0,0.13467771]
[1727121817010,0.0037,63362.0,63354.0,0.078917]
[1727121817011,0.0037,63360.0,63354.0,0.078917]
[1727121817211,0.0037,63360.0,63354.0,0.20252004]
[1727121817516,0.0037,63360.0,63357.0,0.078912]
[1727121817517,0.078914,63358.0,63357.0,0.078912]
[1727121818404,0.078914,63358.0,63357.0,0.188912]
[1727121819524,0.0037,63364.0,63363.0,0.078906]
[1727121819703,0.1552,63378.0,63363.0,0.48386335]
[1727121819704,0.078902,63366.0,63363.0,0.48386335]
[1727121819903,0.3608,63373.0,63363.0,0.02467192]
[1727121819904,0.188905,63364.0,63363.0,0.02467192]
[1727121820113,0.078907,63362.0,63361.0,0.04721975]
[1727121820411,0.078907,63362.0,63357.0,0.001]
[1727121820412,0.078908,63361.0,63357.0,0.001]
[1727121820616,0.11,63359.0,63357.0,0.04822344]
[1727121821418,0.078914,63357.0,63355.0,0.14187491]
[1727121821620,0.11,63356.0,63355.0,0.078916]
[1727121822212,0.188915,63356.0,63355.0,0.078916]
[1727121822521,0.078915,63356.0,63355.0,0.078916]
[1727121824128,0.078915,63356.0,63355.0,0.12611096]
[1727121824518,0.078915,63356.0,63355.0,0.12610674]
[1727121824714,0.078915,63356.0,63355.0,0.078916]
[1727121825019,0.078915,63356.0,63355.0,0.12610653]
[1727121825234,0.12258935,63356.0,63355.0,0.078916]
[1727121825725,0.12258241,63356.0,63355.0,0.078916]
[1727121828323,0.078915,63356.0,63355.0,0.078916]
[1727121829724,0.12258199,63356.0,63355.0,0.078916]
[1727121830619,0.14816858,63356.0,63355.0,0.078916]
[1727121831526,0.12258199,63356.0,63355.0,0.078916]
[1727121831715,0.078915,63356.0,63355.0,0.078916]
[1727121840431,0.157832,63355.0,63354.0,0.3608]
[1727121840728,0.157832,63355.0,63354.0,0.439717]
[1727121842033,0.078916,63355.0,63354.0,0.439717]
[1727121843026,0.078916,63355.0,63354.0,0.078917]
[1727121844636,0.078916,63355.0,63354.0,0.15756999]
[1727121845031,0.078916,63355.0,63354.0,0.25659422]
[1727121845230,0.157832,63355.0,63354.0,0.25659422]
[1727121845436,0.078916,63355.0,63354.0,0.25659422]
[1727121845630,0.078916,63355.0,63354.0,0.17794123]
[1727121845934,0.188916,63355.0,63354.0,0.17794123]
[1727121846137,0.267832,63355.0,63354.0,0.09902423]
[1727121846336,0.346748,63355.0,63354.0,0.09902423]
[1727121846644,0.346748,63355.0,63350.0,0.00606712]
[1727121846645,0.157842,63351.0,63350.0,0.00606712]
[1727121846942,0.157842,63351.0,63350.0,0.10155329]
[1727121847234,0.157842,63351.0,63350.0,0.10157552]
[1727121847422,0.157842,63351.0,63350.0,0.18049752]
[1727121847626,0.236763,63351.0,63350.0,0.10157552]
[1727121847832,0.236763,63351.0,63350.0,0.00236712]
[1727121847833,0.373863,63351.0,63350.0,0.00236712]
[1727121848238,0.373863,63351.0,63350.0,0.00336712]
[1727121848435,0.3994552,63351.0,63350.0,0.00336712]
[1727121848635,0.3994552,63351.0,63350.0,0.00436712]
[1727121848940,0.236778,63347.0,63346.0,0.0037]
[1727121849145,0.157864,63342.0,63341.0,0.0037]
[1727121849347,0.078936,63339.0,63338.0,0.04732072]
[1727121849638,0.188936,63339.0,63338.0,0.04732072]
[1727121850228,0.188936,63339.0,63337.0,0.04732072]
[1727121850435,0.188936,63339.0,63336.0,0.04732072]
[1727121850436,0.078938,63337.0,63336.0,0.04732072]
[1727121851338,0.074938,63337.0,63336.0,0.04732072]
[1727121851534,0.07894,63336.0,63335.0,0.12626172]
[1727121851734,0.07694,63336.0,63335.0,0.12626172]
[1727121852239,0.07694,63336.0,63335.0,0.48706172]
[1727121852240,0.06994,63336.0,63335.0,0.48706172]
[1727121852938,0.06994,63336.0,63335.0,0.447741]
[1727121853142,0.06394,63336.0,63335.0,0.447741]
[1727121854044,0.06394,63336.0,63335.0,0.454741]
[1727121855334,0.06394,63336.0,63335.0,0.15689675]
[1727121856439,0.06394,63336.0,63335.0,0.07795575]
[1727121856732,0.14288,63336.0,63335.0,0.07795575]
[1727121857241,0.14288,63336.0,63335.0,0.015]
[1727121857637,0.22182,63336.0,63335.0,0.015]
[1727121858830,0.22182,63336.0,63335.0,0.01716104]
[1727121859431,0.14288,63336.0,63335.0,0.01716104]
[1727121873142,0.22182,63336.0,63335.0,0.01716104]
[1727121873452,0.157892,63331.0,63330.0,0.0037]
[1727121873658,0.1579,63328.0,63327.0,0.04720739]
[1727121873850,0.23895,63328.0,63326.0,0.04722481]
[1727121874243,0.3179,63328.0,63327.0,0.04723712]
[1727121874548,0.2569,63328.0,63327.0,0.04723712]
[1727121874946,0.2579,63328.0,63327.0,0.04723712]
[1727121875457,0.2579,63328.0,63327.0,0.06123712]
[1727121875651,0.2589,63328.0,63327.0,0.06823712]
[1727121876171,0.2579,63328.0,63327.0,0.008]
[1727121876450,0.3079,63328.0,63327.0,0.008]
[1727121877356,0.3079,63328.0,63327.0,0.07095575]
[1727121877556,0.3069,63328.0,63327.0,0.06395575]
[1727121877746,0.3069,63328.0,63327.0,0.06495575]
[1727121879157,0.3069,63328.0,63327.0,0.002]
[1727121879342,0.3069,63328.0,63327.0,0.06506654]
[1727121880149,0.3069,63328.0,63327.0,0.002]
[1727121880348,0.3069,63328.0,63327.0,0.06506773]
[1727121880349,0.38585,63328.0,63327.0,0.06506773]
[1727121880551,0.38585,63328.0,63327.0,0.002]
[1727121882447,0.38585,63328.0,63327.0,0.06506773]
[1727121882647,0.38585,63328.0,63327.0,0.002]
[1727121884562,0.078955,63324.0,63323.0,0.0473093]
[1727121884750,0.078956,63323.0,63322.0,0.0473093]
[1727121884951,0.078967,63314.0,63313.0,0.0037]
[1727121885164,0.16,63313.0,63312.0,0.00236922]
[1727121885463,0.317936,63313.0,63312.0,0.00236922]
[1727121885674,0.157936,63313.0,63312.0,0.00236922]
[1727121885966,0.312936,63313.0,63312.0,0.00236922]
[1727121886658,0.313936,63313.0,63312.0,0.00236922]
[1727121887460,0.314936,63313.0,63312.0,0.00736922]
[1727121888063,0.236968,63313.0,63312.0,0.00236922]
[1727121888262,0.003,63313.0,63312.0,0.00236922]
[1727121888562,0.005,63313.0,63312.0,0.55517922]
[1727121888867,0.005,63313.0,63312.0,0.08133922]
[1727121890052,0.002,63313.0,63312.0,0.08133922]
[1727121891364,0.078962,63318.0,63317.0,0.078963]
[1727121892457,0.083962,63318.0,63317.0,0.078963]
[1727121892657,0.087962,63318.0,63317.0,0.078963]
[1727121894169,0.088962,63318.0,63317.0,0.078963]
[1727121894464,0.089962,63318.0,63317.0,0.078963]
[1727121894863,0.450762,63318.0,63314.0,0.078967]
[1727121895064,0.078968,63315.0,63314.0,0.078967]
[1727121897374,0.238968,63315.0,63314.0,0.078967]
[1727121897874,0.245968,63315.0,63314.0,0.078967]
[1727121899267,0.157936,63313.0,63312.0,0.00236922]
[1727121899957,0.078975,63308.0,63307.0,0.0037]
[1727121900176,0.078981,63303.0,63300.0,0.0037]
[1727121900378,0.078981,63303.0,63298.0,0.0008]
[1727121900379,0.3608,63301.0,63298.0,0.0008]
[1727121900577,0.3608,63301.0,63294.0,0.0037]
[1727121900578,0.16,63299.0,63294.0,0.0037]
[1727121900767,0.16,63299.0,63292.0,0.078994]
[1727121900768,0.078992,63294.0,63292.0,0.078994]
[1727121900974,0.078987,63298.0,63290.0,0.07889857]
[1727121901169,0.078988,63297.0,63289.0,0.59969857]
[1727121901471,0.157977,63297.0,63295.0,0.078991]
[1727121901663,0.078988,63297.0,63295.0,0.078991]
[1727121901864,0.3645,63303.0,63296.0,0.078989]
[1727121902068,0.3645,63303.0,63292.0,0.08389857]
[1727121902069,0.078985,63300.0,63294.0,0.16]
[1727121902267,0.078985,63300.0,63298.0,0.078986]
[1727121902467,0.078985,63300.0,63299.0,0.078986]
[1727121904676,0.080985,63300.0,63299.0,0.078986]
[1727121910779,0.002,63300.0,63299.0,0.078986]
[1727121910974,0.07898,63304.0,63299.0,0.078986]
[1727121911286,0.07898,63304.0,63303.0,0.3608]
[1727121912180,0.07998,63304.0,63303.0,0.439781]
[1727121912386,0.08098,63304.0,63303.0,0.439781]
[1727121914282,0.07998,63304.0,63303.0,0.442781]
[1727121914470,0.08098,63304.0,63303.0,0.443781]
[1727121915385,0.159961,63304.0,63303.0,0.443781]
[1727121916380,0.08098,63304.0,63303.0,0.443781]
[1727121920984,0.08098,63304.0,63303.0,0.082981]
[1727121924786,0.002,63304.0,63303.0,0.42204478]
[1727121925087,0.002,63304.0,63303.0,0.51642836]
[1727121925394,0.002,63304.0,63303.0,0.42204478]
[1727121926389,0.002,63304.0,63303.0,0.54106603]
[1727121930286,0.002,63304.0,63303.0,0.56575987]
[1727121931696,0.002,63304.0,63303.0,0.44673862]
[1727121933199,0.002,63304.0,63303.0,0.51669362]
[1727121933389,0.002,63304.0,63303.0,0.54138773]
[1727121933789,0.002,63304.0,63303.0,0.44673889]
[1727121933995,0.002,63304.0,63303.0,0.54138773]
[1727121934289,0.002,63304.0,63303.0,0.62036872]
[1727121934794,0.0037,63310.0,63309.0,0.157946]
[1727121935000,0.078966,63315.0,63312.0,0.07897]
[1727121935187,0.078966,63315.0,63314.0,0.07887595]
[1727121936280,0.078966,63315.0,63314.0,0.25754386]
[1727121936890,0.078966,63315.0,63314.0,0.15784295]
[1727121937091,0.0481,63316.0,63315.0,0.078966]
[1727121937292,0.0481,63316.0,63315.0,0.25745463]
[1727121937592,0.0481,63316.0,63315.0,0.078966]
[1727121937593,0.07370225,63316.0,63315.0,0.078966]
[1727121938589,0.08370225,63316.0,63315.0,0.078966]
[1727121938790,0.16266725,63316.0,63315.0,0.078966]
[1727121939994,0.25674877,63316.0,63315.0,0.078966]
[1727121940596,0.03560225,63316.0,63315.0,0.157932]
[1727121940793,0.01,63316.0,63315.0,0.157932]
[1727121942411,0.01,63316.0,63315.0,0.2926214]
[1727121942607,0.01,63316.0,63315.0,0.267932]
[1727121943106,0.01,63316.0,63315.0,0.29262174]
[1727121943317,0.01,63316.0,63315.0,0.267932]
[1727121943511,0.01,63316.0,63315.0,0.078966]
[1727121943512,0.12,63316.0,63315.0,0.078966]
[1727121943816,0.36595394,63316.0,63315.0,0.10365571]
[1727121944025,0.41415394,63316.0,63315.0,0.078966]
[1727121944223,0.41410677,63316.0,63315.0,0.078966]
[1727121944930,0.32006757,63316.0,63315.0,0.078966]
[1727121945129,0.21006757,63316.0,63315.0,0.078966]
[1727121945427,0.30412552,63316.0,63315.0,0.078966]
[1727121945627,0.184465,63316.0,63315.0,0.078966]
[1727121946227,0.001,63318.0,63317.0,0.236889]
[1727121946424,0.0037,63324.0,63323.0,0.078956]
[1727121946619,0.128843,63334.0,63326.0,0.078951]
[1727121946620,0.078949,63329.0,63326.0,0.078951]
[1727121946819,0.078949,63329.0,63326.0,0.06302185]
[1727121947331,0.078947,63330.0,63327.0,0.07895]
[1727121947533,0.078947,63330.0,63328.0,0.078949]
[1727121948030,0.014,63329.0,63328.0,0.078949]
[1727121948523,0.092947,63330.0,63328.0,0.078949]
[1727121948724,0.106947,63330.0,63328.0,0.079949]
[1727121949322,0.092947,63330.0,63328.0,0.078949]
[1727121949632,0.014,63329.0,63328.0,0.079949]
[1727121950720,0.014,63329.0,63328.0,0.080949]
[1727121951025,0.028,63330.0,63329.0,0.078948]
[1727121951227,0.014,63330.0,63329.0,0.078948]
[1727121951627,0.0499,63334.0,63333.0,0.078943]
[1727121951830,0.128842,63334.0,63333.0,0.078943]
[1727121953318,0.0499,63334.0,63333.0,0.078943]
[1727121954228,0.0639,63334.0,63333.0,0.079943]
[1727121954532,0.0779,63334.0,63333.0,0.080943]
[1727121956130,0.156842,63334.0,63333.0,0.080943]
[1727121960842,0.63738167,63334.0,63333.0,0.080943]
[1727121961738,0.58680286,63334.0,63333.0,0.080943]
[1727121962145,0.22600286,63334.0,63333.0,0.080943]
[1727121962342,0.33574826,63334.0,63333.0,0.080943]
[1727121963343,0.30494486,63334.0,63333.0,0.080943]
[1727121964645,0.30496178,63334.0,63333.0,0.080943]
[1727121964842,0.30496178,63334.0,63333.0,0.002]
[1727121967046,0.66576178,63334.0,63333.0,0.002]
[1727121967832,0.596584,63334.0,63333.0,0.002]
[1727121968537,0.706584,63334.0,63333.0,0.002]
[1727121969248,0.706584,63334.0,63333.0,0.080943]
[1727121969533,0.517642,63334.0,63333.0,0.080943]
[1727121971033,0.596584,63334.0,63333.0,0.002]
[1727121971239,0.706584,63334.0,63333.0,0.002]
[1727121971735,0.627642,63334.0,63333.0,0.002]
[1727121972445,0.706584,63334.0,63333.0,0.002]
[1727121975240,0.706584,63334.0,63333.0,0.06502185]
[1727121976048,0.77587508,63334.0,63333.0,0.002]
[1727121976252,0.88562048,63334.0,63333.0,0.002]
[1727121977257,0.8266182,63334.0,63333.0,0.002]
[1727121978947,0.77587508,63334.0,63333.0,0.002]
[1727121979556,0.41507508,63334.0,63333.0,0.002]
[1727121979763,0.77587508,63334.0,63333.0,0.002]
[1727121979957,0.82661807,63334.0,63333.0,0.002]
[1727121980959,0.46581807,63334.0,63333.0,0.002]
[1727121981161,0.82661807,63334.0,63333.0,0.002]
[1727121981352,0.46581807,63334.0,63333.0,0.002]
[1727121981553,0.82661807,63334.0,63333.0,0.002]
[1727121982965,0.706584,63334.0,63333.0,0.002]
[1727121983148,0.785526,63334.0,63333.0,0.002]
[1727121983464,0.706584,63334.0,63333.0,0.002]
[1727121983958,0.785526,63334.0,63333.0,0.002]
[1727121985167,0.627642,63334.0,63331.0,0.06318503]
[1727121985350,0.07895,63328.0,63325.0,0.06318503]
[1727121985561,0.07895,63328.0,63316.0,0.125264]
[1727121985562,0.07896,63320.0,63319.0,0.0037]
[1727121985753,0.078963,63317.0,63316.0,0.125264]
[1727121986056,0.078963,63317.0,63316.0,0.2248149]
[1727121987256,0.089963,63317.0,63316.0,0.2258149]
[1727121987460,0.089963,63317.0,63316.0,0.1468509]
[1727121987765,0.278926,63317.0,63316.0,0.1005509]
[1727121988262,0.278926,63317.0,63316.0,0.001]
[1727121988953,0.199963,63317.0,63316.0,0.001]
[1727121989152,0.011,63317.0,63316.0,0.440765]
[1727121989458,0.0037,63324.0,63316.0,0.440765]
[1727121989459,0.0037,63324.0,63323.0,0.078956]
[1727121989662,0.078954,63325.0,63324.0,0.078955]
[1727121989857,0.078951,63327.0,63326.0,0.078952]
[1727121990054,0.078951,63327.0,63326.0,0.188952]
[1727121990255,0.078951,63327.0,63326.0,0.28794373]
[1727121990852,0.3645,63335.0,63329.0,0.078947]
[1727121990853,0.078948,63330.0,63329.0,0.078947]
[1727121991053,0.078948,63330.0,63329.0,0.188947]
[1727121991461,0.3608,63335.0,63332.0,0.078944]
[1727121991651,0.078942,63334.0,63333.0,0.11]
[1727121992956,0.089942,63334.0,63333.0,0.111]
[1727121993355,0.011,63334.0,63333.0,0.189943]
[1727121993563,0.0037,63341.0,63339.0,0.078935]
[1727121993765,0.00236918,63342.0,63340.0,0.234934]
[1727121994064,0.00236918,63342.0,63340.0,0.156]
[1727121994259,0.00236918,63342.0,63341.0,0.16]
[1727121994653,0.00236918,63342.0,63341.0,0.599733]
[1727121995054,0.00236918,63342.0,63341.0,0.68747428]
[1727121995263,0.00236918,63342.0,63341.0,0.62441334]
[1727121996088,0.00236918,63342.0,63341.0,1.673373]
[1727121996265,0.02136918,63342.0,63341.0,1.674373]
[1727121996467,0.02136918,63342.0,63341.0,1.53905215]
[1727121996669,0.02136918,63342.0,63341.0,1.69905215]
[1727121996866,0.00736918,63342.0,63341.0,1.69905215]
[1727121997167,0.02136918,63342.0,63341.0,1.70005215]
[1727121997466,0.02136918,63342.0,63341.0,1.675373]
[1727121997863,0.02136918,63342.0,63341.0,1.70005214]
[1727121998370,0.0037,63348.0,63347.0,0.078926]
[1727121998564,0.078924,63349.0,63348.0,0.078925]
[1727121999059,0.078924,63349.0,63348.0,0.128125]
[1727121999856,0.078924,63349.0,63348.0,0.129125]
[1727122000258,0.092924,63349.0,63348.0,0.130125]
[1727122000661,0.092924,63349.0,63348.0,0.002]
[1727122002064,0.092924,63349.0,63348.0,0.080925]
[1727122003571,0.092924,63349.0,63348.0,0.002]
[1727122003572,0.171848,63349.0,63348.0,0.002]
[1727122005870,0.19743871,63349.0,63348.0,0.002]
[1727122006463,0.11851471,63349.0,63348.0,0.002]
[1727122006882,0.11851471,63349.0,63348.0,0.080925]
[1727122007580,0.1185146,63349.0,63348.0,0.080925]
[1727122011171,0.1185146,63349.0,63348.0,0.002]
[1727122011172,0.1974376,63349.0,63348.0,0.002]
[1727122011484,0.11851294,63349.0,63348.0,0.002]
[1727122011783,0.11851294,63349.0,63348.0,0.080925]
[1727122012488,0.11851346,63349.0,63348.0,0.080925]
[1727122012868,0.092923,63349.0,63348.0,0.080925]
[1727122014277,0.092923,63349.0,63348.0,0.190925]
[1727122014873,0.092923,63349.0,63348.0,0.112]
[1727122015292,0.092923,63349.0,63348.0,0.002]
[1727122018393,0.171846,63349.0,63348.0,0.002]
[1727122018594,0.092923,63349.0,63348.0,0.002]
[1727122018783,0.171846,63349.0,63348.0,0.002]
[1727122019394,0.092923,63349.0,63348.0,0.002]
[1727122019587,0.092923,63349.0,63348.0,0.080925]
[1727122025581,0.171846,63349.0,63348.0,0.080925]
[1727122025781,0.092923,63349.0,63348.0,0.080925]
[1727122029190,0.31186247,63349.0,63348.0,0.080925]
[1727122029798,0.46760512,63349.0,63348.0,0.080925]
[1727122030598,0.32616961,63349.0,63348.0,0.080925]
[1727122030789,0.46767661,63349.0,63348.0,0.080925]
[1727122031484,0.26705446,63349.0,63348.0,0.080925]
[1727122032385,0.21514024,63349.0,63348.0,0.080925]
[1727122032695,0.26001974,63349.0,63348.0,0.080925]
[1727122032896,0.41577093,63349.0,63348.0,0.080925]
[1727122033287,0.27426393,63349.0,63348.0,0.080925]
[1727122035889,0.19535902,63349.0,63348.0,0.71501943]
[1727122036088,0.12583402,63353.0,63352.0,0.078919]
[1727122036288,0.21648679,63358.0,63357.0,0.078913]
[1727122036488,0.21278679,63358.0,63357.0,0.549713]
[1727122037898,0.21378679,63358.0,63357.0,0.550713]
[1727122038291,0.001,63358.0,63357.0,0.550713]
[1727122038892,0.001,63358.0,63357.0,0.57638721]
[1727122039198,0.001,63358.0,63357.0,0.551713]